Cogmind - Beta 14 @@@ ROGUE MODE // 2024.08.17 @ 20:23:29 Player: Andru7428 Result: Self-destructed Performance ------------- Evolutions (3) 1500 Regions Visited (7) 1400 Robots Destroyed (109) 545 Value Destroyed (3189) 3189 Prototype IDs (3) 60 Alien Tech Used (0) 0 Bonus (154) 154 TOTAL SCORE: 6848 Bonus ------- High Alert Combat Kills 154 Cogmind --------- Core Integrity 588/700 Matter 86/300 Energy 265/265 System Corruption 6% Temperature Cool (0) Movement Treading (250) Ox1 Location -7/Factory Parts ------- > --- POWER (1) -------- Improved Ion Engine > --- PROPULSION (4) --- Armored Treads VSS Leg > --- UTILITY (5) ------ Improved Cooling System Medium Storage Unit Core Analyzer Improved Light Armor Plating Improved Light Armor Plating > --- WEAPON (3) ------- Heavy Particle Gun Heavy Particle Gun Mini Grenade Launcher > --- INVENTORY (10) --- Improved Carbon-fiber Leg Seismic Detector Heavy Armor Plating Sensor Drone Bay (20/20) Gauss Rifle Flak Gun Flak Gun Powered Hammer Peak State ------------ > --- POWER ------------ Improved Ion Engine > --- PROPULSION ------- Light Treads Armored Treads Advanced Treads VSS Leg > --- UTILITY ---------- Improved Cooling System Medium Storage Unit Core Analyzer Improved Light Armor Plating Improved Light Armor Plating > --- WEAPON ----------- Heavy Particle Gun Heavy Particle Gun Gauss Rifle > --- INVENTORY -------- Improved Ion Engine Seismic Detector Heavy Armor Plating Improved Light Armor Plating Sensor Drone Bay Flak Gun Flak Gun Mini Grenade Launcher Powered Hammer [Rating: 42] Favorites ----------- Power Improved Ion Engine Engine Improved Ion Engine Propulsion Aluminum Leg Treads Light Treads Leg Aluminum Leg Utility Medium Storage Unit Device Seismic Detector Storage Medium Storage Unit Processor Core Analyzer Protection Light Armor Plating Weapon Improved Assault Rifle Energy Gun Heavy Particle Gun Energy Cannon Beam Cannon Ballistic Gun Improved Assault Rifle Launcher Improved Grenade Launcher Impact Weapon Great Maul Build | -11 -10 -9 -9 -9 -8 -8 -7 ------- Run | Yrd Mat Mat Min Exi Min Mat Fac Slots Evolved 6 | . . 2 . . . 2 2 Power . | . . . . . . . . Propulsion 2 | . . 1 . . . 1 . Utility 3 | . . 1 . . . 1 1 Weapon 1 | . . . . . . . 1 Parts Attached 109 | 7 13 13 12 . 7 36 21 Power 10 | 1 2 2 1 . . 3 1 Engine 10 | 1 2 2 1 . . 3 1 Core . | . . . . . . . . Reactor . | . . . . . . . . Propulsion 27 | 2 7 3 2 . . 12 1 Treads 7 | . 2 . . . . 5 . Leg 20 | 2 5 3 2 . . 7 1 Wheel . | . . . . . . . . Hover . | . . . . . . . . Flight . | . . . . . . . . Utility 30 | 2 3 6 3 . 2 7 7 Device 12 | 1 2 3 2 . . 3 1 Storage 2 | 1 1 . . . . . . Processor 1 | . . . . . . . 1 Hackware . | . . . . . . . . Protection 15 | . . 3 1 . 2 4 5 Artifact . | . . . . . . . . Weapon 42 | 2 1 2 6 . 5 14 12 Energy Gun 8 | 2 . . . . . 4 2 Energy Cannon 3 | . 1 . . . 2 . . Ballistic Gun 18 | . . 2 3 . 2 5 6 Ballistic Cannon . | . . . . . . . . Launcher 8 | . . . 3 . 1 3 1 Special Weapon . | . . . . . . . . Impact Weapon 5 | . . . . . . 2 3 Slashing Weapon . | . . . . . . . . Piercing Weapon . | . . . . . . . . Special Melee Weapon . | . . . . . . . . Unidentified Prototypes 3 | . . 1 1 . . 1 . Parts Lost 20 | . 1 . 1 . . 14 4 Power 4 | . 1 . . . . 2 1 Propulsion 8 | . . . . . . 6 2 Utility 5 | . . . 1 . . 3 1 Weapon 3 | . . . . . . 3 . Highest Loss Streak 11 | . 1 . 1 . . 11 2 To Critical Strikes . | . . . . . . . . Average Slot Usage (%) 94 | . 100 99 100 100 100 80 98 Engine 10 | . 14 11 11 11 11 8 7 Treads 11 | . 20 . . . . 10 22 Leg 18 | . 7 33 33 33 33 14 7 Device 9 | . 14 9 11 11 1 9 7 Storage 10 | . 14 11 11 11 11 9 7 Processor 1 | . . . . . . . 6 Protection 10 | . . 12 11 11 20 9 14 Energy Gun 6 | . 16 2 . . . 8 5 Energy Cannon 3 | . 11 2 . . 10 1 . Ballistic Gun 9 | . . 16 21 22 11 4 11 Impact Weapon 1 | . . . . . . . 4 Peak Build Rating 42 | 7 8 15 21 15 16 29 42 Average Rating 19 | 5 7 13 14 15 14 19 38 On Entrance 12 | . 7 8 15 15 15 15 28 Naked Turns . | . . . . . . . . Heaviest Build 43 | 12 21 29 27 23 28 39 43 Greatest Support 62 | 20 40 30 30 30 30 62 62 Greatest Overweight (x) 3 | 2 1 . . . . 3 2 Average Overweight (x) . | . . . . . . . . Largest Inventory Capacity 10 | 8 10 10 10 10 10 10 10 Average Capacity 9 | 7 9 10 10 10 10 10 10 Most Carried 10 | 6 10 10 10 10 10 10 10 Average Carried 9 | 5 8 9 9 10 10 9 9 Final Capacity 10 | 8 10 10 10 10 10 10 10 Final Carried 10 | 6 10 10 10 10 10 10 9 Class Distribution -------------------- 75% | Mutant 15% | Scavenger-Mutant 8% | Tank Dominant Class ---------------- Mutant | -10/Materials Mutant | -9/Materials Mutant | -9/Mines Mutant | -9/Exiles Mutant | -8/Mines Scavenger-Mutant | -8/Materials Mutant | -7/Factory Resources | -11 -10 -9 -9 -9 -8 -8 -7 ----------- Run | Yrd Mat Mat Min Exi Min Mat Fac Matter Collected 1903 | 270 117 268 311 38 110 441 348 Remotely 108 | . . . . . . 108 . Salvage Created 3232 | 141 521 667 181 . 144 844 734 Parts 200 | 13 29 46 17 . 7 53 35 Haulers Intercepted 5 | . 2 3 . . . . . Recyclers Shooed 1 | . . . . . . 1 . Parts Field Recycled . | . . . . . . . . Retrieved Matter . | . . . . . . . . Parts Self-Destructed . | . . . . . . . . Prevented . | . . . . . . . . Kills | -11 -10 -9 -9 -9 -8 -8 -7 ------- Run | Yrd Mat Mat Min Exi Min Mat Fac Combat Hostiles Destroyed 79 | . 14 12 11 . 5 18 19 Guns 38 | . 9 10 1 . 2 7 9 Cannons 8 | . 5 2 . . 1 . . AOE 32 | . . . 10 . 2 10 10 Classes Destroyed 14 | 1 4 4 . . . 2 3 Worker 6 | . . 2 . . . 2 2 Tunneler 11 | 6 1 . 3 . . 1 . Hauler 5 | . 2 3 . . . . . Recycler 5 | . . 1 1 . . 2 1 Mechanic 1 | . . . . . . . 1 Operator 1 | . . . . . . . 1 Watcher 1 | . 1 . . . . . . Swarmer 21 | . 5 3 7 . 2 1 3 Grunt 34 | . 9 5 4 . 2 8 6 Brawler 1 | . . . . . . 1 . Duelist 3 | . . 1 . . 1 1 . Sentry 10 | . . 3 . . . 6 1 Hunter 4 | . . . . . . 1 3 Programmer 6 | . . . . . . . 6 Best Kill Streak 12 | 5 3 4 7 . 2 7 12 Combat Bots Only 9 | . 3 2 6 . 2 7 9 Max Kills in Single Turn 3 | 1 2 2 3 . 2 3 3 Gunslinging . | . . . . . . . . Exploded 3 | . . . 3 . 2 3 2 Melee . | . . . . . . . . Uniques/NPCs Destroyed . | . . . . . . . . Combat | -11 -10 -9 -9 -9 -8 -8 -7 -------- Run | Yrd Mat Mat Min Exi Min Mat Fac Hostile Shots Fired 493 | . 91 52 26 . 27 142 155 Missed 148 | . 19 19 7 . 9 40 54 Damage Taken 5338 | . 741 603 300 . 239 1905 1550 Core 900 | . 162 124 9 . 59 434 112 Absorbed by Shields . | . . . . . . . . Ignored by Resistances 34 | . . . . . . 34 . Core Remaining (%) 52 | 100 35 . . . 52 21 . Volleys Fired 241 | 11 52 41 16 . 16 62 43 Largest 3 | 2 2 2 2 . 2 2 3 Hottest 110 | 90 110 110 46 . 83 110 110 Shots Fired 432 | 22 102 82 24 . 29 106 67 Gun 333 | 22 68 78 16 . 16 76 57 Cannon 71 | . 34 4 . . 10 23 . Launcher 28 | . . . 8 . 3 7 10 Special . | . . . . . . . . Kinetic 167 | . . 74 16 . 16 48 13 Thermal 237 | 22 102 8 . . 10 51 44 Explosive 28 | . . . 8 . 3 7 10 Electromagnetic . | . . . . . . . . Robot Hit Streak 22 | 9 8 13 10 . 10 22 8 Robot Miss Streak 5 | 2 4 2 2 . 3 5 3 Penetration Max . | . . . . . . . . Secondary Targets 5 | . 2 1 . . 1 . 1 Max Gunslinging Chain 1 | . 1 1 . . 1 . 1 Shots Hit Robots 307 | 17 66 67 13 . 17 80 47 Core Hits 182 | 6 24 26 21 . 8 41 56 Critical Kills 1 | . . . 1 . . . . Critical Parts Destroyed 1 | . . . . . . 1 . Critical Strikes 10 | 3 4 . 1 . . 2 . Burn 8 | 3 4 . . . . 1 . Destroy 2 | . . . 1 . . 1 . Melee Attacks 31 | . . . . . . 2 29 Impact 31 | . . . . . . 2 29 Slashing . | . . . . . . . . Piercing . | . . . . . . . . Sneak Attacks 1 | . . . . . . . 1 Combat Hostiles . | . . . . . . . . Follow-up Attacks . | . . . . . . . . Damage Inflicted 8834 | 199 1019 1278 1181 . 577 2352 2228 Guns 4008 | 199 556 952 170 . 158 1048 925 Cannons 898 | . 452 73 . . 137 236 . Explosions 3815 | . . 241 1003 . 282 1059 1230 Melee 73 | . . . . . . . 73 Ramming 40 | . 11 12 8 . . 9 . Kinetic 2165 | . . 939 170 . 158 654 244 Thermal 2911 | 199 1008 86 . . 137 630 851 Explosive 3645 | . . 241 1003 . 282 1059 1060 Electromagnetic . | . . . . . . . . Impact 73 | . . . . . . . 73 Slashing . | . . . . . . . . Piercing . | . . . . . . . . Highest Corruption 6 | . . 2 2 2 2 . 6 Average Corruption 2 | . . 1 2 2 2 . 3 Corruption Purged . | . . . . . . . . Corruption Blocked . | . . . . . . . . Effects 54 | . . 2 14 4 8 . 26 Message Errors 10 | . . . 1 1 2 . 6 Matter Fused 16 | . . 1 2 1 2 . 10 Heat Flow Errors 11 | . . . 4 1 2 . 4 Energy Discharges 6 | . . 1 3 . . . 2 Data Loss (minor) 8 | . . . 3 1 2 . 2 Data Loss (major) 3 | . . . 1 . . . 2 Overload Shots . | . . . . . . . . Overflow Damage 210 | . . 72 . . . 81 57 Projectiles . | . . . . . . . . Explosions 167 | . . 72 . . . 81 14 Melee 43 | . . . . . . . 43 Knockbacks 1 | . . . . . . . 1 Impact 1 | . . . . . . . 1 Kinetic . | . . . . . . . . Secondary . | . . . . . . . . Self-Inflicted Damage 496 | . . 95 54 . 6 264 77 Shots 14 | . . 1 3 . 1 5 4 Rammed 3 | . 3 . . . . . . Targets Rammed 16 | . 9 1 2 . . 4 . Kicked 13 | . 6 1 2 . . 4 . Crushed . | . . . . . . . . Highest Temperature 444 | 120 363 102 270 183 227 444 191 Average Temperature 97 | 44 106 24 121 95 106 108 54 Received Heat Transfer 1584 | . 300 108 117 . 117 693 249 Effects 6 | . 3 . 1 . . 2 . Shutdowns 2 | . 1 . . . . 1 . Energy Bleed 1 | . . . 1 . . . . Interference 2 | . 1 . . . . 1 . Short Circuit 1 | . 1 . . . . . . Siege Activations . | . . . . . . . . Robots Corrupted 1 | . . . . . . . 1 Combat Hostiles . | . . . . . . . . Parts Fried . | . . . . . . . . Impact Corruptions 2 | . . . . . . . 2 Robots Melted 1 | . . . . . . 1 . Combat Hostiles 1 | . . . . . . 1 . Parts Melted 14 | 2 6 . . . . 4 2 Heat Transferred 6520 | 755 2803 185 . . 222 1221 1334 Parts Sabotaged . | . . . . . . . . Parts Stolen . | . . . . . . . . Parts Stripped . | . . . . . . . . Power Chain Reactions . | . . . . . . . . Alert | -11 -10 -9 -9 -9 -8 -8 -7 ------- Run | Yrd Mat Mat Min Exi Min Mat Fac Peak Influence 738 | 30 214 421 489 . 165 379 738 Initial 130 | . 19 7 130 . . 46 37 Average 159 | 16 102 179 314 . 77 154 193 Maximum Alert Level 3 | . 1 2 2 . . 1 3 Low Security (%) 72 | 100 94 57 1 . 100 78 70 Level 1 21 | . 5 36 78 . . 21 13 Level 2 4 | . . 6 20 . . . 6 Level 3 2 | . . . . . . . 9 Level 4 . | . . . . . . . . Level 5 . | . . . . . . . . High Security . | . . . . . . . . Max Security . | . . . . . . . . Squads Dispatched 17 | . 2 1 . . . 4 10 Investigation 4 | . . . . . . 2 2 Extermination 3 | . . . . . . . 3 Reinforcement 10 | . 2 1 . . . 2 5 Assault . | . . . . . . . . Garrison . | . . . . . . . . Intercept . | . . . . . . . . Searches Triggered . | . . . . . . . . Construction Impeded 1 | . . . . . . . 1 Haulers Reinforced 1 | . . . . . . . 1 Active Scanning Responses . | . . . . . . . . Cargo Convoy Interrupts 1 | . . . . . . . 1 Stealth | -11 -10 -9 -9 -9 -8 -8 -7 --------- Run | Yrd Mat Mat Min Exi Min Mat Fac Distress Signals 8 | . 5 . . . . 3 . Communications Jammed . | . . . . . . . . Distress Signals . | . . . . . . . . Times Spotted 145 | . 39 22 11 . 12 34 27 Peak Tracking Total 8 | . 8 5 5 . 3 7 8 Tactical Retreats 22 | . 4 7 . . 6 3 2 Traps | -11 -10 -9 -9 -9 -8 -8 -7 ------- Run | Yrd Mat Mat Min Exi Min Mat Fac Traps Triggered 2 | . . 1 . . . 1 . Indirectly . | . . . . . . . . Trap Hack Attempts . | . . . . . . . . Triggered . | . . . . . . . . Disarmed . | . . . . . . . . Reprogrammed . | . . . . . . . . Reused . | . . . . . . . . Traps Extracted . | . . . . . . . . Installed . | . . . . . . . . Triggered 1 | . . . . . . . 1 Machines | -11 -10 -9 -9 -9 -8 -8 -7 ---------- Run | Yrd Mat Mat Min Exi Min Mat Fac Machines Disabled 10 | . . 2 1 . . 3 4 Max in Single Turn 2 | . . 2 1 . . 1 2 Garrison Access 3 | . . . . . . 1 2 Machines Repaired . | . . . . . . . . Machines Dismantled . | . . . . . . . . Machines Sabotaged . | . . . . . . . . Overloaded Fab Kills . | . . . . . . . . Hacking | -11 -10 -9 -9 -9 -8 -8 -7 --------- Run | Yrd Mat Mat Min Exi Min Mat Fac Machines Accessed 20 | . 6 4 1 1 1 4 3 Terminals 15 | . 6 4 . . 1 3 1 Fabricators . | . . . . . . . . Repair Stations . | . . . . . . . . Recycling Units . | . . . . . . . . Scanalyzers . | . . . . . . . . Garrison Access 3 | . . . . . . 1 2 Total Hacks 46 | . 18 12 1 1 2 9 3 Successful 20 | . 8 3 1 1 2 3 2 Failed 26 | . 10 9 . . . 6 1 Catastrophic 3 | . . 2 . . . 1 . Database Lockouts . | . . . . . . . . Manual 27 | . 13 3 . . 2 6 3 Terminals 41 | . 18 12 . . 2 8 1 Fabricators . | . . . . . . . . Repair Stations . | . . . . . . . . Recycling Units . | . . . . . . . . Scanalyzers . | . . . . . . . . Garrison Access 3 | . . . . . . 1 2 Terminal Hacks 11 | . 5 1 1 1 2 1 . Record 1 | . . . . 1 . . . Robot Analysis 2 | . 1 . . . 1 . . Open Door 1 | . . . 1 . . . . Alert Level 2 | . 1 . . . 1 . . Unreport Threat 2 | . 1 . . . . 1 . Locate Traps 3 | . 2 1 . . . . . Fabricator Hacks . | . . . . . . . . Repair Station Hacks . | . . . . . . . . Recycling Unit Hacks . | . . . . . . . . Scanalyzer . | . . . . . . . . Garrison Access Hacks 1 | . . . . . . 1 . Seal Access 1 | . . . . . . 1 . Unauthorized Hacks 8 | . 3 2 . . . 1 2 Terminals 6 | . 3 2 . . . 1 . Botnet 5 | . 3 1 . . . 1 . Disrupt 1 | . . 1 . . . . . Fabricators . | . . . . . . . . Repair Stations . | . . . . . . . . Recycling Units . | . . . . . . . . Scanalyzers . | . . . . . . . . Garrison Access 2 | . . . . . . . 2 Jam 2 | . . . . . . . 2 Data Cores Recovered 1 | . . . . . . . 1 Used . | . . . . . . . . Hacking Detections 15 | . 6 4 . . 1 3 1 Full Trace Events 2 | . . 1 . . . 1 . Feedback Events 1 | . . 1 . . . . . Corruption 1 | . . 1 . . . . . Feedback Blocked . | . . . . . . . . Robot Schematics Acquired . | . . . . . . . . Robots Built . | . . . . . . . . Authchips . | . . . . . . . . Time . | . . . . . . . . Total Robot Build Rating . | . . . . . . . . Part Schematics Acquired . | . . . . . . . . Parts Built . | . . . . . . . . Authchips . | . . . . . . . . Time . | . . . . . . . . Total Part Build Rating . | . . . . . . . . Parts Repaired . | . . . . . . . . Time . | . . . . . . . . Parts Recycled . | . . . . . . . . Recycled Matter . | . . . . . . . . Retrieved Matter . | . . . . . . . . Retrieved Components . | . . . . . . . . Parts Scanalyzed . | . . . . . . . . Part Schematics Acquired . | . . . . . . . . Parts Damaged . | . . . . . . . . Bothacking | -11 -10 -9 -9 -9 -8 -8 -7 ------------ Run | Yrd Mat Mat Min Exi Min Mat Fac Used RIF Installer . | . . . . . . . . Robots Hacked . | . . . . . . . . Non-combat . | . . . . . . . . Combat . | . . . . . . . . Robot Hacks Applied . | . . . . . . . . Relay Couplers Released . | . . . . . . . . Fabnet Peak Effective % . | . . . . . . . . Robots Rewired . | . . . . . . . . Allies Hacked . | . . . . . . . . Hacks Repelled . | . . . . . . . . Allies | -11 -10 -9 -9 -9 -8 -8 -7 -------- Run | Yrd Mat Mat Min Exi Min Mat Fac Total Allies . | . . . . . . . . Largest Group . | . . . . . . . . Highest-Rated Group . | . . . . . . . . Highest-Rated Ally . | . . . . . . . . Total Orders . | . . . . . . . . Ally Attacks . | . . . . . . . . Total Damage . | . . . . . . . . Kills . | . . . . . . . . Allies Corrupted . | . . . . . . . . Allies Melted . | . . . . . . . . Intel | -11 -10 -9 -9 -9 -8 -8 -7 ------- Run | Yrd Mat Mat Min Exi Min Mat Fac Robot Analysis Total 2 | . 1 . . . 1 . . Derelict Logs Recovered 2 | . . . 2 . . . . Drone Launches . | . . . . . . . . Drone Recoveries . | . . . . . . . . Exploration | -11 -10 -9 -9 -9 -8 -8 -7 ------------- Run | Yrd Mat Mat Min Exi Min Mat Fac Turns Passed 7266 | 229 1246 858 682 210 749 1696 1596 Spaces Moved 4035 | 123 592 480 506 176 564 792 802 Core 13 | 10 . . . . . 3 . Treads 1620 | . 439 . . . . 432 749 Legs 2402 | 113 153 480 506 176 564 357 53 Wheels . | . . . . . . . . Hover . | . . . . . . . . Flight . | . . . . . . . . Fastest Speed 50 | 50 120 120 120 120 120 120 157 Average Speed 145 | 116 159 120 120 120 120 174 165 Slowest Speed 270 | 150 190 120 120 120 120 260 270 Overloaded Moves . | . . . . . . . . Propulsion Burnouts . | . . . . . . . . Robots Hopped . | . . . . . . . . Cave-ins Triggered . | . . . . . . . . Exploration Rate (%) 57 | 6 96 45 93 49 92 56 23 Regions Visited 7 Branch Regions 3 Pre-discovered Areas 4 | . . . 3 1 . . . Known Exits Taken . | . . . . . . . . Unknown Exits Taken 7 | 1 1 1 1 1 1 1 . Scrap Searched 3 | . . . 2 . 1 . . Spaces Dug 30 | . . . . . . 2 28 Terrain Destroyed 380 | . . 24 93 . 28 118 117 Melee 30 | . . . . . . 2 28 Projectile 3 | . . . . . 2 1 . AOE 347 | . . 24 93 . 26 115 89 Terrain Rammed . | . . . . . . . . Walls Destroyed . | . . . . . . . . Machines Disabled . | . . . . . . . . Actions | -11 -10 -9 -9 -9 -8 -8 -7 --------- Run | Yrd Mat Mat Min Exi Min Mat Fac Total 4925 | 183 790 685 556 175 604 987 945 Wait 393 | 37 104 131 10 . 17 61 33 Move 4028 | 122 591 479 505 175 563 791 802 Hop . | . . . . . . . . Pick Up 44 | 6 9 7 3 . . 14 5 Fast Attach 35 | 7 1 3 3 . 1 15 5 Attach 15 | . 1 2 1 . . 9 2 Detach 4 | . . . 1 . . 3 . Swap 59 | . 11 8 8 . 6 12 14 Drop 59 | . 12 13 7 . 1 14 12 Fire 241 | 11 52 41 16 . 16 62 43 Melee 31 | . . . . . . 2 29 Ram . | . . . . . . . . Kick 13 | . 6 1 2 . . 4 . Crush 3 | . 3 . . . . . . Escape Stasis . | . . . . . . . . Rewire . | . . . . . . . . Trap . | . . . . . . . . Miscellaneous . | . . . . . . . . Route ------- -11/Scrapyard -10/Materials (discovered 5 exits: *Mat x3 / [*Min x2]) -9/Materials (discovered 2 exits: *Mat / *Min) -9/Mines (discovered 3 exits: *Mat x2 / *Exi) -9/Exiles -8/Mines (discovered 2 exits: *Mat x2) -8/Materials -7/Factory (discovered 2 exits: [*Fac x2]) History --------- Turn | Location | Event 8 | -11/Scrapyard | Discovered new exit (range 15) 230 | -11/Scrapyard | Entered Materials 302 | -10/Materials | Build established: Mutant 311 | -10/Materials | Discovered new exit (range 8) 416 | -10/Materials | Discovered new exit (range 10) 608 | -10/Materials | Discovered new exit (range 14) 711 | -10/Materials | Discovered new exit (range 7) 1070 | -10/Materials | Core integrity fell below 50% 1345 | -10/Materials | Discovered new exit (range 8) 1476 | -10/Materials | Entered another Materials area 1476 | -9/Materials | Evolved 2 slots: Propulsion x1, Utility x1 1698 | -9/Materials | Discovered new exit (range 7) 2256 | -9/Materials | Discovered new exit (range 16) 2334 | -9/Materials | Entered Mines 2542 | -9/Mines | Learned location of Storage (-7) 2684 | -9/Mines | Discovered new exit (range 8) 2687 | -9/Mines | Discovered new exit (range 16) 2820 | -9/Mines | Learned location of Zion (-6) 2835 | -9/Mines | Found DCF Scrap (10 items) 2946 | -9/Mines | Deemed a non-threat by the Exiles lab entrance 2967 | -9/Mines | Found the Drone Emporium 2972 | -9/Mines | Found Prototype Device 2972 | -9/Mines | Identified Sensor Drone Bay 3012 | -9/Mines | Discovered new exit (range 5) 3016 | -9/Mines | Entered Exiles 3049 | -9/Exiles | Met 8R-AWN 3066 | -9/Exiles | Met EX-HEX 3112 | -9/Exiles | Met EX-DEC 3153 | -9/Exiles | Discovered new exit (range 14) 3226 | -9/Exiles | Entered Mines 3565 | -8/Mines | Discovered new exit (range 7) 3657 | -8/Mines | Discovered new exit (range 15) 3975 | -8/Mines | Entered Materials 3975 | -8/Materials | Evolved 2 slots: Propulsion x1, Utility x1 4352 | -8/Materials | Core integrity fell below 50% 4372 | -8/Materials | Destroyed 7 combat bots 4382 | -8/Materials | Lost 11 parts (1p5n2u3w) 4446 | -8/Materials | Discovered new exit (range 8) 5184 | -8/Materials | Build established: Scavenger-Mutant 5671 | -8/Materials | Entered Factory 5671 | -7/Factory | Evolved 2 slots: Utility x1, Weapon x1 6291 | -7/Factory | Build established: Mutant 6389 | -7/Factory | Discovered new exit (range 13) 6594 | -7/Factory | Discovered new exit (range 15) 6825 | -7/Factory | Cargo convoy interrupted 6975 | -7/Factory | Destroyed 7 combat bots 6987 | -7/Factory | Build established: Tank 7142 | -7/Factory | Destroyed 9 combat bots 7267 | -7/Factory | Self-destructed Last Messages --------------- 07138_ U-05 Engineer builds a Wall. 07141_ Acquired Imp. Carbon-fiber Leg. 07142_ U-05 Engineer builds a Wall. 07142_ U-05 Engineer lays Concrete. 07160_ System corrupted: Heat flow error (+157). 07160_ K-01 Serf collects debris. 07166_ U-05 Engineer builds a Wall. 07168_ U-05 Engineer lays Concrete. 07170_ U-05 Engineer builds a Wall. 07170_ U-05 Engineer lays Concrete. 07174_ The unstable cave ceiling collapses. 07174_ U-05 Engineer lays Concrete. 07174_ U-05 Engineer builds a Wall. 07175_ U-05 Engineer lays Concrete. 07216_ System corrupted: Matter fused (-9). 07255_ Slug penetrates Wall. 07257_ Adv. Treads destroyed. 07259_ Penetrated by Slug. 07264_ Slug penetrates Wall. 07267_ Penetrated by Slug. Map ----- +----------------------------------------------------+ | # """ """ #[ """ #?# | | # """"""""" """ """ # #?# | | # """ """ # #?# | | # """"""""" # #?# | | # #### # #?# | | # = """"""""" #??# #####+########## | | # #??# =/ !!H | | # #??# =/ !! | | # #??# = !! | | # ########+#??# | | # # #??# | | # # """ #??# h############+### ## | | " # """ #??# ##????????? ?# # | | # """ #??# #?????????? # #! | | # #### #????????? # # | | # """ + #???????? # # | | # # """ ####### #????? "?" """ # ## | | # #[ """ #?????# #???? """ """ # | | # # #?????# #????? """ """ # | | # #####+########## #????? # | | % H H ###? """ """ # | | ! % % #? """ """ # | | %= ;## """ """ + | | ### # !! | | %#???#########+## !! | | ######## @;###### ###### ![ | | ###?# # ! [ ! !# | | #?# ; [!o !# | | ###### ############## [! +! ## | | += #????????????# # #? | | =# #????????????# """T""" ! # #? | | + #????????????############## #? | | ########+###########??????????????##"#+####+#### | | " #??????????????# | | " #??????????????# ! | | # #??????????????# | | " """"""" #??????????????# | | ### """"""" #??????????????# """ """ """ | | #?# """"""" #??????????????# """ """ """ | | ??# """"""" "" "" #??????????????# """ """ """ | | ??# ""G"" #??????????????# | | ??####################??????????????############## | | | | | | | | | | | | | | | | | +----------------------------------------------------+ Best States ------------- Heat Dissipation 61 Energy Generation 12 Energy Capacity 265 Matter Stores 300 Matter Capacity 300 Sight Range 16 Terrain Scan Density 10 Armor Coverage 525 Resistance: KI 20 Evasion (%) 55 Core Analysis 6 Recoil Reduction 3 Item Schematics ----------------- None Robot Schematics ------------------ None Fabricated ------------ Nothing Alien Tech Used ----------------- None Achievements -------------- None Challenges ------------ None Game ------ Seed DirtyMasterHammer Manual? 0 Play Time 00:54:04 Cumulative 235.5 hours Start 2024.08.17 @ 10:25:27 End 2024.08.17 @ 20:23:29 Sessions 3 Manual Loads 0 Difficulty Rogue Special Mode None Game No. 172 Rogue 172 Adventurer 0 Explorer 0 Win Type - Total 3 Types 3/0/0/0/0/0/0/0/0 Lore% 58 Gallery% 74 Achievement% 62 Wizard Run 0 Options --------- Layout 0 ASCII 0 Keyboard 1 Movement Numpad Keybinds 0 Fullscreen 2 Font 18/SmallcapsGlow Map View 76x50 Zoom Use 0% Tactical HUD 1 Map Filters NONE Filters NONE Steam 1 RUN: e02772be-9d92-494f-8603-19e05ee91281